{"text_format":"3","workbook":"xlsx","n_sheets":2,"sheets":["Bắt đầu","Bảng kế hoạch ngân sách ngày lễ"],"not_rendered":{"defined_names":1},"read":"whole","date_system":"1900"}

{"sheet":"Bắt đầu","index":0,"n_rows":7,"n_cols":2,"rows_kept":7}
[null,"GIỚI THIỆU VỀ MẪU NÀY"]
[null,"Theo dõi chi phí với Bảng lập kế hoạch ngân sách cho ngày lễ."]
[null,"Chỉ cần nhập Ngân sách và chi phí Thực tế phát sinh vào các nội dung khác nhau trong các bảng."]
[null,"Ngân sách cho ngày lễ, Tổng số tiền tiêu thực tế và Số tiền chênh lệch sẽ được tính toán tự động cho bạn."]
[null,"Lưu ý: "]
[null,"Bạn có thể đọc thêm hướng dẫn ở cột A trong trang tính BẢNG LẬP KẾ HOẠCH NGÂN SÁCH CHO NGÀY LỄ. Phần văn bản này được cố ý ẩn đi. Để loại bỏ văn bản, chọn cột A, rồi chọn XÓA. Để bỏ ẩn văn bản, chọn cột A, rồi thay đổi màu phông chữ."]
[null,"Để tìm hiểu thêm về các bảng, hãy nhấn SHIFT rồi nhấn F10 trong một bảng, chọn tùy chọn BẢNG, rồi chọn VĂN BẢN THAY THẾ."]

{"sheet":"Bảng kế hoạch ngân sách ngày lễ","index":1,"n_rows":32,"n_cols":12,"rows_kept":32,"merged":[[1,1,5,4],[2,8,2,9],[3,8,3,9],[4,8,4,9],[6,1,6,4],[6,8,6,11],[15,1,15,4],[15,8,15,11],[25,1,25,4],[25,8,25,11]]}
["Nhập Ngân sách và chi phí Thực tế phát sinh trong mỗi thể loại vào các bảng tương ứng trong trang tính này. Hướng dẫn hữu ích về cách sử dụng trang tính này nằm ở các ô trong cột này. Mũi tên xuống để bắt đầu. "]
["Tiêu đề của trang tính này nằm trong ô bên phải.","Bảng lập kế hoạch ngân sách cho ngày lễ"]
["Ngân sách cho ngày lễ được tính toán tự động trong ô K3.",{"$nulls":7},"NGÂN SÁCH CHO NGÀY LỄ",null,{"$f":"SUM(Quà_tặng[Ngân sách],Gói_bọc[Ngân sách],(Đi_lại[Ngân sách],(Ăn_uống[Ngân sách],(Giải_trí[Ngân sách],Khác[Ngân sách]))))","v":{"v":750,"d":"750.00 ₫"}}]
["Số tiền tiêu thực tế được tính toán tự động trong ô K4.",{"$nulls":7},"SỐ TIỀN TIÊU THỰC TẾ",null,{"$f":"SUM((Quà_tặng[Thực tế],(Gói_bọc[Thực tế],(Đi_lại[Thực tế],(Ăn_uống[Thực tế],(Giải_trí[Thực tế],(Khác[Thực tế])))))))","v":{"v":820,"d":"820.00 ₫"}}]
["Chênh lệch được tính toán tự động trong ô K5. Hướng dẫn tiếp theo nằm trong ô A7.",{"$nulls":7},"CHÊNH LỆCH (quá/dưới ngân sách)",null,{"$f":"SUM(K3-K4)","v":{"v":-70,"d":"-70.00 ₫"}}]
[]
["Nhãn Quà tặng nằm trong ô bên phải còn nhãn Ăn uống trong ngày lễ nằm trong ô I7.","Quà tặng",{"$nulls":6},"Ăn uống trong ngày lễ"]
["Nhập chi phí Quà tặng vào bảng bắt đầu từ ô bên phải và chi phí Ăn uống vào bảng bắt đầu từ ô I8. Hướng dẫn tiếp theo nằm trong ô A16.","Nội dung","Ngân sách","Thực tế","Chênh lệch",{"$nulls":3},"Nội dung","Ngân sách","Thực tế","Chênh lệch"]
[null,"Gia đình",{"v":500,"d":"500.00 ₫"},{"v":495,"d":"495.00 ₫"},{"$f":"Quà_tặng[[#This Row],[Ngân sách]]-Quà_tặng[[#This Row],[Thực tế]]","v":{"v":5,"d":"5.00 ₫"}},{"$nulls":3},"Tạp phẩm",null,null,{"$f":"Ăn_uống[[#This Row],[Ngân sách]]-Ăn_uống[[#This Row],[Thực tế]]","v":{"v":0,"d":"0.00 ₫"}}]
[null,"Bạn bè",{"v":250,"d":"250.00 ₫"},{"v":325,"d":"325.00 ₫"},{"$f":"Quà_tặng[[#This Row],[Ngân sách]]-Quà_tặng[[#This Row],[Thực tế]]","v":{"v":-75,"d":"-75.00 ₫"}},{"$nulls":3},"Rượu cúng",null,null,{"$f":"Ăn_uống[[#This Row],[Ngân sách]]-Ăn_uống[[#This Row],[Thực tế]]","v":{"v":0,"d":"0.00 ₫"}}]
[null,"Đồng nghiệp",null,null,{"$f":"Quà_tặng[[#This Row],[Ngân sách]]-Quà_tặng[[#This Row],[Thực tế]]","v":{"v":0,"d":"0.00 ₫"}},{"$nulls":3},"Đồ trang trí",null,null,{"$f":"Ăn_uống[[#This Row],[Ngân sách]]-Ăn_uống[[#This Row],[Thực tế]]","v":{"v":0,"d":"0.00 ₫"}}]
[null,"Giáo viên, bảo mẫu, người giữ trẻ, v.v.",null,null,{"$f":"Quà_tặng[[#This Row],[Ngân sách]]-Quà_tặng[[#This Row],[Thực tế]]","v":{"v":0,"d":"0.00 ₫"}},{"$nulls":3},"Khác (nhấn phím tab ở cột cuối của hàng này để thêm hàng)",null,null,{"$f":"Ăn_uống[[#This Row],[Ngân sách]]-Ăn_uống[[#This Row],[Thực tế]]","v":{"v":0,"d":"0.00 ₫"}}]
[null,"Quyên góp từ thiện",null,null,{"$f":"Quà_tặng[[#This Row],[Ngân sách]]-Quà_tặng[[#This Row],[Thực tế]]","v":{"v":0,"d":"0.00 ₫"}},{"$nulls":3},"Tổng",{"$f":"SUBTOTAL(109,Ăn_uống[Ngân sách])","v":{"v":0,"d":"0.00 ₫"}},{"$f":"SUBTOTAL(109,Ăn_uống[Thực tế])","v":{"v":0,"d":"0.00 ₫"}},{"$f":"SUBTOTAL(109,Ăn_uống[Chênh lệch])","v":{"v":0,"d":"0.00 ₫"}}]
[null,"Khác (nhấn phím tab ở cột cuối của hàng này để thêm hàng)",null,null,{"$f":"Quà_tặng[[#This Row],[Ngân sách]]-Quà_tặng[[#This Row],[Thực tế]]","v":{"v":0,"d":"0.00 ₫"}}]
[null,"Tổng",{"$f":"SUBTOTAL(109,Quà_tặng[Ngân sách])","v":{"v":750,"d":"750.00 ₫"}},{"$f":"SUBTOTAL(109,Quà_tặng[Thực tế])","v":{"v":820,"d":"820.00 ₫"}},{"$f":"SUBTOTAL(109,Quà_tặng[Chênh lệch])","v":{"v":-70,"d":"-70.00 ₫"}}]
["Nhãn Gói bọc nằm trong ô bên phải còn nhãn Giải trí nằm trong ô I16.","Gói bọc",{"$nulls":6},"Giải trí"]
["Nhập chi phí Gói bọc vào bảng bắt đầu từ ô bên phải và chi phí Giải trí vào bảng bắt đầu từ ô I17. Hướng dẫn tiếp theo nằm trong ô A26.","Nội dung","Ngân sách","Thực tế","Chênh lệch",{"$nulls":3},"Nội dung","Ngân sách","Thực tế","Chênh lệch"]
[null,"Giấy gói quà",null,null,{"$f":"Gói_bọc[[#This Row],[Ngân sách]]-Gói_bọc[[#This Row],[Thực tế]]","v":{"v":0,"d":"0.00 ₫"}},{"$nulls":3},"Trợ giúp tổ chức tiệc (người pha chế, đơn vị phục vụ ăn uống, nhân công dọn dẹp, v.v.)",null,null,{"$f":"Giải_trí[[#This Row],[Ngân sách]]-Giải_trí[[#This Row],[Thực tế]]","v":{"v":0,"d":"0.00 ₫"}}]
[null,"Thẻ ghi nhãn",null,null,{"$f":"Gói_bọc[[#This Row],[Ngân sách]]-Gói_bọc[[#This Row],[Thực tế]]","v":{"v":0,"d":"0.00 ₫"}},{"$nulls":3},"Đồ trang trí",null,null,{"$f":"Giải_trí[[#This Row],[Ngân sách]]-Giải_trí[[#This Row],[Thực tế]]","v":{"v":0,"d":"0.00 ₫"}}]
[null,"Vật dụng (ruy băng, băng dính, v.v.)",null,null,{"$f":"Gói_bọc[[#This Row],[Ngân sách]]-Gói_bọc[[#This Row],[Thực tế]]","v":{"v":0,"d":"0.00 ₫"}},{"$nulls":3},"Đồ ăn, nước uống",null,null,{"$f":"Giải_trí[[#This Row],[Ngân sách]]-Giải_trí[[#This Row],[Thực tế]]","v":{"v":0,"d":"0.00 ₫"}}]
[null,"Hộp",null,null,{"$f":"Gói_bọc[[#This Row],[Ngân sách]]-Gói_bọc[[#This Row],[Thực tế]]","v":{"v":0,"d":"0.00 ₫"}},{"$nulls":3},"Trang phục",null,null,{"$f":"Giải_trí[[#This Row],[Ngân sách]]-Giải_trí[[#This Row],[Thực tế]]","v":{"v":0,"d":"0.00 ₫"}}]
[null,"Bưu phí",null,null,{"$f":"Gói_bọc[[#This Row],[Ngân sách]]-Gói_bọc[[#This Row],[Thực tế]]","v":{"v":0,"d":"0.00 ₫"}},{"$nulls":3},"Vé",null,null,{"$f":"Giải_trí[[#This Row],[Ngân sách]]-Giải_trí[[#This Row],[Thực tế]]","v":{"v":0,"d":"0.00 ₫"}}]
[null,"Khác (nhấn phím tab ở cột cuối của hàng này để thêm hàng)",null,null,{"$f":"Gói_bọc[[#This Row],[Ngân sách]]-Gói_bọc[[#This Row],[Thực tế]]","v":{"v":0,"d":"0.00 ₫"}},{"$nulls":3},"Ăn tối bên ngoài",null,null,{"$f":"Giải_trí[[#This Row],[Ngân sách]]-Giải_trí[[#This Row],[Thực tế]]","v":{"v":0,"d":"0.00 ₫"}}]
[null,"Tổng",{"$f":"SUBTOTAL(109,Gói_bọc[Ngân sách])","v":{"v":0,"d":"0.00 ₫"}},{"$f":"SUBTOTAL(109,Gói_bọc[Thực tế])","v":{"v":0,"d":"0.00 ₫"}},{"$f":"SUBTOTAL(109,Gói_bọc[Chênh lệch])","v":{"v":0,"d":"0.00 ₫"}},{"$nulls":3},"Khác (nhấn phím tab ở cột cuối của hàng này để thêm hàng)",null,null,{"$f":"Giải_trí[[#This Row],[Ngân sách]]-Giải_trí[[#This Row],[Thực tế]]","v":{"v":0,"d":"0.00 ₫"}}]
[{"$nulls":8},"Tổng",{"$f":"SUBTOTAL(109,Giải_trí[Ngân sách])","v":{"v":0,"d":"0.00 ₫"}},{"$f":"SUBTOTAL(109,Giải_trí[Thực tế])","v":{"v":0,"d":"0.00 ₫"}},{"$f":"SUBTOTAL(109,Giải_trí[Chênh lệch])","v":{"v":0,"d":"0.00 ₫"}}]
["Nhãn Đi lại nằm trong ô bên phải còn chi phí Khác nằm trong ô I26","Đi lại",{"$nulls":6},"Chi phí khác"]
["Nhập chi phí Đi lại vào bảng bắt đầu từ ô bên phải và chi phí Khác vào bảng bắt đầu từ ô I27.","Nội dung","Ngân sách","Thực tế","Chênh lệch",{"$nulls":3},"Nội dung","Ngân sách","Thực tế","Chênh lệch"]
[null,"Vé máy bay",null,null,{"$f":"Đi_lại[[#This Row],[Ngân sách]]-Đi_lại[[#This Row],[Thực tế]]","v":{"v":0,"d":"0.00 ₫"}},{"$nulls":3},"Ảnh chụp ngày lễ",null,null,{"$f":"Khác[[#This Row],[Ngân sách]]-Khác[[#This Row],[Thực tế]]","v":{"v":0,"d":"0.00 ₫"}}]
[null,"Chỗ ở",null,null,{"$f":"Đi_lại[[#This Row],[Ngân sách]]-Đi_lại[[#This Row],[Thực tế]]","v":{"v":0,"d":"0.00 ₫"}},{"$nulls":3},"Xăng dầu ",null,null,{"$f":"Khác[[#This Row],[Ngân sách]]-Khác[[#This Row],[Thực tế]]","v":{"v":0,"d":"0.00 ₫"}}]
[null,"Đi lại",null,null,{"$f":"Đi_lại[[#This Row],[Ngân sách]]-Đi_lại[[#This Row],[Thực tế]]","v":{"v":0,"d":"0.00 ₫"}},{"$nulls":3},"Khác (nhấn phím tab ở cột cuối của hàng này để thêm hàng)",null,null,{"$f":"Khác[[#This Row],[Ngân sách]]-Khác[[#This Row],[Thực tế]]","v":{"v":0,"d":"0.00 ₫"}}]
[null,"Khác (nhấn phím tab ở cột cuối của hàng này để thêm hàng)",null,null,{"$f":"Đi_lại[[#This Row],[Ngân sách]]-Đi_lại[[#This Row],[Thực tế]]","v":{"v":0,"d":"0.00 ₫"}},{"$nulls":3},"Tổng",{"$f":"SUBTOTAL(109,Khác[Ngân sách])","v":{"v":0,"d":"0.00 ₫"}},{"$f":"SUBTOTAL(109,Khác[Thực tế])","v":{"v":0,"d":"0.00 ₫"}},{"$f":"SUBTOTAL(109,Khác[Chênh lệch])","v":{"v":0,"d":"0.00 ₫"}}]
[null,"Tổng",{"$f":"SUBTOTAL(109,Đi_lại[Ngân sách])","v":{"v":0,"d":"0.00 ₫"}},{"$f":"SUBTOTAL(109,Đi_lại[Thực tế])","v":{"v":0,"d":"0.00 ₫"}},{"$f":"SUBTOTAL(109,Đi_lại[Chênh lệch])","v":{"v":0,"d":"0.00 ₫"}}]